bitfinex-derivatives/quotes_BTCF0:USTF0_20251228
["timestamp","ask_amount","ask_price","bid_price","bid_amount"]
[1766884393689,0.06148502,87920.0,87898.0,0.06772]
[1766884393889,0.06148502,87919.0,87900.0,0.11405153]
[1766884394090,0.06148502,87920.0,87900.0,0.11405153]
[1766884394282,0.06148502,87919.0,87910.0,0.12543463]
[1766884394486,0.06148502,87920.0,87910.0,0.03318108]
[1766884395290,0.06148502,87920.0,87910.0,0.04456418]
[1766884397190,0.06148502,87920.0,87905.0,0.05696]
[1766884397392,0.06148502,87920.0,87910.0,0.11405153]
[1766884398799,0.06148502,87920.0,87911.0,0.0113831]
[1766884404297,0.06148502,87920.0,87910.0,0.11405153]
[1766884406497,0.08565037,87920.0,87910.0,0.021798]
[1766884407599,0.06148502,87920.0,87910.0,0.021798]
[1766884408308,0.06148502,87920.0,87910.0,0.11405153]
[1766884412310,0.06148502,87918.0,87905.0,0.05696]
[1766884413208,0.06148502,87918.0,87908.0,0.0113833]
[1766884413706,0.06148502,87918.0,87908.0,0.12543483]
[1766884413909,0.06148502,87918.0,87908.0,0.0113833]
[1766884420516,0.06148502,87918.0,87907.0,0.0113835]
[1766884422325,0.11844502,87921.0,87907.0,0.0113835]
[1766884422919,0.11844502,87921.0,87909.0,0.0113833]
[1766884427641,0.0113823,87918.0,87890.0,0.04091091]
[1766884427939,0.05696,87921.0,87894.0,0.12468]
[1766884428736,0.02413571,87920.0,87895.0,0.12468]
[1766884428931,0.02413571,87919.0,87896.0,0.12468]
[1766884429132,0.02413571,87918.0,87896.0,0.12468]
[1766884429327,0.02413571,87917.0,87886.0,0.00022734]
[1766884429535,0.02413571,87916.0,87897.0,0.05696]
[1766884429736,0.02413571,87915.0,87886.0,0.00022734]
[1766884430037,0.02413571,87914.0,87894.0,0.12468]
[1766884430235,0.02413571,87913.0,87901.0,0.0113842]
[1766884430434,0.02413571,87912.0,87901.0,0.0113842]
[1766884430631,0.02413571,87911.0,87901.0,0.0113842]
[1766884430826,0.02413571,87910.0,87901.0,0.0113842]
[1766884431030,0.02413571,87909.0,87901.0,0.0113842]
[1766884431238,0.02413571,87908.0,87901.0,0.0113842]
[1766884431535,0.02413571,87907.0,87886.0,0.00022734]
[1766884431724,0.00017062,87909.0,87901.0,0.0113842]
[1766884431928,0.02413276,87908.0,87901.0,0.0113842]
[1766884432138,0.02413276,87907.0,87901.0,0.0113842]
[1766884432337,0.00017062,87909.0,87901.0,0.0113842]
[1766884432537,0.00017062,87909.0,87899.0,0.05696]
[1766884432538,8e-08,87908.0,87899.0,0.05696]
[1766884432738,0.00017062,87909.0,87899.0,0.05696]
[1766884433237,0.00017062,87909.0,87901.0,0.0113842]
[1766884440552,0.00017062,87909.0,87903.0,0.011384]
[1766884441845,0.00017062,87909.0,87900.0,0.0113844]
[1766884442045,0.00017062,87909.0,87901.0,0.05696]
[1766884444452,0.02423856,87908.0,87901.0,0.05696]
[1766884444652,0.02423856,87907.0,87901.0,0.05696]
[1766884444953,0.02423856,87906.0,87901.0,0.05696]
[1766884445153,0.02423856,87905.0,87901.0,0.05696]
[1766884445455,0.02423856,87904.0,87901.0,0.05696]
[1766884445756,0.00017062,87909.0,87901.0,0.0683443]
[1766884446052,0.02423859,87908.0,87901.0,0.0683443]
[1766884446248,0.02423859,87907.0,87901.0,0.0683443]
[1766884446450,0.02423859,87906.0,87901.0,0.0683443]
[1766884446651,9e-08,87905.0,87901.0,0.0683443]
[1766884446951,0.00017062,87909.0,87901.0,0.0683443]
[1766884452951,0.00017062,87909.0,87901.0,0.05696]
[1766884453947,0.00017062,87909.0,87898.0,0.0113847]
[1766884454147,0.00017062,87909.0,87899.0,0.05696]
[1766884454347,0.00017062,87909.0,87898.0,0.0113847]
[1766884454552,0.00017062,87909.0,87900.0,0.05696]
[1766884455860,0.00017062,87909.0,87898.0,0.0113847]
[1766884458562,0.02435485,87908.0,87898.0,0.0113847]
[1766884458762,0.02435485,87907.0,87898.0,0.0113847]
[1766884459066,0.02435485,87906.0,87898.0,0.0113847]
[1766884459362,0.02435485,87905.0,87898.0,0.0113847]
[1766884459659,0.02435485,87904.0,87892.0,0.01308308]
[1766884459859,0.02435485,87903.0,87896.0,0.0113849]
[1766884460059,0.02435473,87902.0,87896.0,0.0113849]
[1766884460259,0.00017062,87909.0,87896.0,0.0113849]
[1766884464366,0.00017062,87909.0,87897.0,0.05696]
[1766884464668,0.00017062,87909.0,87897.0,0.12468]
[1766884465263,0.00017062,87909.0,87898.0,0.12468]
[1766884468366,0.00017062,87909.0,87895.0,0.0113851]
[1766884468569,0.00017062,87909.0,87896.0,0.12468]
[1766884469475,0.00017062,87909.0,87897.0,0.05696]
[1766884469771,0.00017062,87909.0,87898.0,0.05696]
[1766884471767,0.00017062,87909.0,87899.0,0.05696]
[1766884472180,0.02454902,87908.0,87899.0,0.05696]
[1766884472374,0.02454902,87907.0,87892.0,0.0113854]
[1766884472578,0.02454902,87906.0,87893.0,0.12468]
[1766884472778,0.02454902,87905.0,87893.0,0.12468]
[1766884472978,0.02454902,87904.0,87893.0,0.12468]
[1766884473178,0.02454902,87903.0,87893.0,0.12468]
[1766884473378,0.02454902,87902.0,87893.0,0.12468]
[1766884473578,0.00017062,87909.0,87893.0,0.12468]
[1766884474489,0.00017062,87909.0,87894.0,0.12468]
[1766884482394,0.00017062,87909.0,87894.0,0.1360652]
[1766884485600,0.02443316,87908.0,87894.0,0.1360652]
[1766884485784,0.02443316,87907.0,87894.0,0.1360652]
[1766884485989,0.02443316,87906.0,87894.0,0.1360652]
[1766884486192,0.02443316,87905.0,87894.0,0.1360652]
[1766884486392,3.16e-06,87904.0,87894.0,0.1360652]
[1766884486592,0.00017062,87909.0,87894.0,0.1360652]
[1766884498399,0.02470535,87908.0,87894.0,0.1360652]
[1766884498602,0.02470535,87907.0,87894.0,0.1360652]
[1766884498799,0.02470535,87906.0,87894.0,0.1360652]
[1766884499003,0.02470535,87905.0,87894.0,0.1360652]
[1766884499206,0.02470535,87904.0,87894.0,0.1360652]
[1766884499396,0.02470535,87903.0,87894.0,0.1360652]
[1766884499596,0.02470535,87902.0,87894.0,0.1360652]
[1766884499812,0.02470535,87901.0,87894.0,0.1360652]
[1766884500010,0.02470535,87900.0,87894.0,0.1360652]
[1766884500310,0.02470535,87899.0,87894.0,0.1360652]
[1766884500608,0.02470535,87898.0,87894.0,0.12299634]
[1766884500797,5e-08,87897.0,87894.0,0.12299634]
[1766884500998,0.00017062,87909.0,87894.0,0.12299634]
[1766884501413,0.11406531,87910.0,87896.0,0.011385]
[1766884501594,0.0113833,87909.0,87890.0,0.0113858]
[1766884501902,0.0113837,87907.0,87891.0,0.05696]
[1766884502294,0.06148502,87906.0,87891.0,0.05696]
[1766884502701,0.11406531,87901.0,87892.0,0.05696]
[1766884503204,0.11406531,87901.0,87891.0,0.05696]
[1766884503392,0.11406531,87901.0,87891.0,0.00510937]
[1766884504108,0.11406531,87901.0,87886.0,0.01161354]
[1766884504406,0.11406531,87901.0,87890.0,0.05696]
[1766884506204,0.11406531,87900.0,87886.0,0.00022734]
[1766884506506,0.06148502,87894.0,87881.0,0.04764]
[1766884506706,0.11406531,87891.0,87881.0,0.04764]
[1766884509602,0.11406531,87891.0,87867.0,0.0113886]
[1766884509801,0.11406531,87880.0,87868.0,0.05328]
[1766884510001,0.05696,87886.0,87868.0,0.05328]
[1766884512706,0.11406531,87880.0,87868.0,0.05328]
[1766884512907,0.02483152,87879.0,87868.0,0.05328]
[1766884513612,0.02483152,87878.0,87868.0,0.05328]
[1766884513817,0.02483152,87877.0,87868.0,0.05328]
[1766884514110,0.11406531,87880.0,87868.0,0.05328]
[1766884514303,0.02482437,87879.0,87868.0,0.05328]
[1766884514506,0.02482437,87878.0,87868.0,0.05328]
[1766884514812,0.11406531,87880.0,87868.0,0.05328]
[1766884515010,0.02482002,87879.0,87868.0,0.05328]
[1766884515306,2e-08,87878.0,87868.0,0.05328]
[1766884515508,0.05696,87886.0,87868.0,0.05328]
[1766884515702,0.11406531,87880.0,87865.0,0.06772]
[1766884515902,0.17102531,87880.0,87860.0,0.00012756]
[1766884516207,0.17102531,87880.0,87861.0,0.05696]
[1766884516608,0.17102531,87880.0,87861.0,0.0683494]
[1766884518216,0.17102531,87880.0,87861.0,0.05696]
[1766884518915,0.17102531,87880.0,87860.0,0.00012756]
[1766884519115,0.11406531,87871.0,87860.0,0.00012756]
[1766884519412,0.0113876,87876.0,87860.0,0.00012756]
[1766884519716,0.11406531,87870.0,87860.0,0.00012756]
[1766884520110,0.0113872,87879.0,87860.0,0.00012756]
[1766884520826,0.11406531,87870.0,87860.0,0.00012756]
[1766884522815,0.0113872,87879.0,87860.0,0.00012756]
[1766884525020,0.11406531,87870.0,87860.0,0.00012756]
[1766884527323,0.0247888,87869.0,87860.0,0.00012756]
[1766884527515,0.11406531,87870.0,87860.0,0.00012756]
[1766884527710,0.02478796,87869.0,87856.0,0.05696]
[1766884527915,0.02478801,87868.0,87856.0,0.05696]
[1766884528114,0.11406531,87870.0,87856.0,0.05696]
[1766884528321,0.02479144,87869.0,87854.0,0.0113903]
[1766884528522,0.02479144,87868.0,87854.0,0.0113903]
[1766884528725,0.00011137,87867.0,87854.0,0.0683503]
[1766884530021,0.00011137,87867.0,87854.0,0.0113903]
[1766884530420,0.00011137,87867.0,87854.0,0.0683503]
[1766884531423,0.00011137,87867.0,87848.0,0.0113912]
[1766884531619,0.11406531,87860.0,87849.0,0.12472]
[1766884531926,0.11406531,87860.0,87850.0,0.05696]
[1766884532519,0.11406531,87860.0,87849.0,0.011391]
[1766884532726,0.11406531,87860.0,87850.0,0.12472]
[1766884533428,0.11406531,87860.0,87851.0,0.0113908]
[1766884534122,0.11406531,87860.0,87850.0,0.12472]
[1766884534328,0.11406531,87860.0,78344.0,2.0]
[1766884534329,0.11406531,87860.0,87845.0,0.0113916]
[1766884534528,0.02481923,87859.0,87846.0,0.057]
[1766884534728,0.11406531,87860.0,87846.0,0.057]
[1766884534930,0.02481927,87859.0,87846.0,0.057]
[1766884535122,0.11406531,87860.0,87847.0,0.0113913]
[1766884535429,0.02482774,87859.0,87847.0,0.0113913]
[1766884535729,0.02482774,87858.0,87847.0,0.0113913]
[1766884535942,0.0113891,87865.0,87847.0,0.0113913]
[1766884536238,0.02482786,87864.0,87847.0,0.0113913]
[1766884536437,0.02482786,87863.0,87847.0,0.0113913]
[1766884536630,0.02482786,87862.0,87847.0,0.0113913]
[1766884536834,0.02482786,87861.0,87847.0,0.0113913]
[1766884537046,0.02482786,87860.0,87847.0,0.0113913]
[1766884537245,0.02482786,87859.0,87847.0,0.0113913]
[1766884537447,0.02482786,87858.0,87847.0,0.0113913]
[1766884537634,0.02482786,87857.0,87847.0,0.0113913]
[1766884537834,0.0113891,87865.0,87847.0,0.0113913]
[1766884538134,0.02483817,87864.0,87847.0,0.0113913]
[1766884538334,0.02483817,87863.0,87847.0,0.0113913]
[1766884538536,0.02483817,87862.0,87848.0,0.057]
[1766884538734,0.02483817,87861.0,87847.0,0.0113913]
[1766884538936,0.02483817,87860.0,87847.0,0.0113913]
[1766884539138,0.02483817,87859.0,87848.0,0.057]
[1766884539434,0.02483817,87858.0,87848.0,0.057]
[1766884539741,0.02483817,87857.0,87847.0,0.0113913]
[1766884539945,0.0113891,87865.0,87847.0,0.0113913]
[1766884539946,0.02483817,87856.0,87848.0,0.057]
[1766884540145,0.02483817,87855.0,87848.0,0.057]
[1766884540446,0.0113891,87865.0,87848.0,0.057]
[1766884540645,0.0248476,87864.0,87848.0,0.057]
[1766884540845,0.0248476,87863.0,87845.0,0.06776]
[1766884541046,0.0113895,87861.0,87843.0,0.057]
[1766884541245,0.0248476,87860.0,87843.0,0.057]
[1766884542346,0.0248476,87859.0,87843.0,0.057]
[1766884542542,0.0248476,87858.0,87843.0,0.057]
[1766884542750,0.0248476,87857.0,87841.0,0.0113921]
[1766884542940,0.0248476,87856.0,87843.0,0.057]
[1766884543141,0.0248476,87855.0,87843.0,0.057]
[1766884543341,0.0248476,87854.0,87843.0,0.057]
[1766884543543,0.0248476,87853.0,87843.0,0.057]
[1766884543845,0.02485125,87852.0,87843.0,0.057]
[1766884544040,0.02485125,87851.0,87843.0,0.057]
[1766884544246,0.02485161,87850.0,87843.0,0.057]
[1766884544441,0.02485161,87849.0,87843.0,0.057]
[1766884544748,0.0113894,87862.0,87843.0,0.057]
[1766884544949,0.02485262,87861.0,87843.0,0.057]
[1766884545150,0.02485262,87860.0,87843.0,0.057]
[1766884545448,0.02485262,87859.0,87843.0,0.057]
[1766884545648,0.02485262,87858.0,87843.0,0.057]
[1766884545842,0.02485262,87857.0,87843.0,0.057]
[1766884546042,0.02485262,87856.0,87843.0,0.057]
[1766884546242,0.02485262,87855.0,87843.0,0.057]
[1766884546545,0.02485262,87854.0,87843.0,0.057]
[1766884546740,0.02485262,87853.0,87842.0,0.00022745]
[1766884546941,0.02485262,87852.0,87842.0,0.00022745]
[1766884547148,0.02485262,87851.0,87842.0,0.00022745]
[1766884547350,0.02485262,87850.0,87842.0,0.00022745]
[1766884547552,0.02495913,87849.0,87842.0,0.00022745]
[1766884547852,0.02485262,87848.0,87842.0,0.00022745]
[1766884549049,0.02485262,87848.0,87834.0,0.06776]
[1766884549354,0.02485262,87848.0,87803.0,0.00227784]
[1766884549355,0.02485262,87848.0,87824.0,0.057]
[1766884550046,0.0113921,87842.0,87824.0,0.057]
[1766884550247,0.0113923,87840.0,87824.0,0.057]
[1766884550452,0.02485262,87839.0,87824.0,0.057]
[1766884550654,0.02485262,87838.0,87824.0,0.057]
[1766884550841,0.02485262,87837.0,87824.0,0.057]
[1766884551046,0.0113929,87835.0,87824.0,0.057]
[1766884551254,0.02485262,87834.0,87808.0,0.0113964]
[1766884551448,0.02485262,87834.0,87803.0,0.093163]
[1766884551449,0.0113935,87831.0,87818.0,0.12476]
[1766884551757,0.0113935,87831.0,87803.0,0.00227784]
[1766884551758,0.0113943,87825.0,87803.0,0.00227784]
[1766884551956,0.0113942,87825.0,87819.0,0.057]
[1766884552256,0.0113942,87825.0,87803.0,0.00227784]
[1766884552257,0.0113946,87823.0,87803.0,0.00227784]
[1766884552554,0.02482964,87822.0,87803.0,0.00227784]
[1766884552855,0.00017072,87830.0,87804.0,0.12476]
[1766884552856,0.0113962,87810.0,87804.0,0.12476]
[1766884553245,0.011396,87812.0,87803.0,4e-08]
[1766884553450,0.11436676,87830.0,87803.0,4e-08]
[1766884553451,0.0113942,87825.0,87803.0,4e-08]
[1766884553752,0.0113964,87809.0,87804.0,0.12476]
[1766884553948,0.0113964,87809.0,87805.0,0.12476]
[1766884554141,0.0113945,87823.0,87803.0,4e-08]
[1766884554341,0.02513568,87822.0,87804.0,0.00596]
[1766884554545,0.12559084,87820.0,87782.0,0.0113997]
[1766884554740,0.00017083,87810.0,87791.0,0.01309363]
[1766884554941,0.02500461,87809.0,87792.0,0.12476]
[1766884555152,0.0113972,87803.0,87779.0,0.0114002]
[1766884555350,0.0113978,87798.0,87782.0,0.01309539]
[1766884555551,0.011398,87796.0,87783.0,0.12476]
[1766884555855,8.72e-05,87797.0,87771.0,0.0080329]
[1766884555856,0.0113986,87792.0,87771.0,0.0080329]
[1766884556048,0.0113986,87792.0,87774.0,0.12476]
[1766884556247,0.0113959,87812.0,87774.0,0.12476]
[1766884556248,0.11419604,87810.0,87775.0,0.057]
[1766884556452,0.0113985,87793.0,87775.0,0.12476]
[1766884556751,0.05704,87809.0,87775.0,0.12476]
[1766884556948,0.0113988,87790.0,87775.0,0.12476]
[1766884557342,0.0113992,87787.0,87775.0,0.12476]
[1766884557741,5.997e-05,87789.0,87775.0,0.12476]
[1766884559057,0.0678,87798.0,87775.0,0.12476]
[1766884559058,0.0791977,87798.0,87775.0,0.12476]
[1766884559355,0.02489551,87797.0,87775.0,0.1361607]
[1766884559547,0.05704,87804.0,87775.0,0.1361606]
[1766884559747,0.0113974,87801.0,87775.0,0.1361606]
[1766884559949,0.011398,87796.0,87775.0,0.12476]
[1766884560257,0.00017083,87794.0,87775.0,0.12476]
[1766884560445,0.0678,87802.0,87782.0,0.0113998]
[1766884560650,0.0113965,87808.0,87783.0,0.05704]
[1766884560857,0.0678,87807.0,87789.0,0.0113988]
[1766884561063,0.0113947,87821.0,87788.0,0.0678]
[1766884561256,0.0791947,87821.0,87788.0,0.0678]
[1766884561561,0.0678,87821.0,87803.0,0.011397]
[1766884561862,0.0678,87821.0,87801.0,0.05704]
[1766884562051,0.0113953,87817.0,87801.0,0.05704]
[1766884562363,0.0791948,87821.0,87801.0,0.05704]
[1766884562552,0.011395,87819.0,87801.0,0.05704]
[1766884563351,0.00017083,87820.0,87801.0,0.05704]
[1766884563551,0.00017083,87820.0,87802.0,0.05704]
[1766884563552,0.01156583,87820.0,87802.0,0.05704]
[1766884563752,0.06148502,87840.0,87802.0,0.05704]
[1766884563753,0.0678,87835.0,87802.0,0.05704]
[1766884563963,0.011393,87834.0,87811.0,0.0113959]
[1766884564148,0.011393,87834.0,87811.0,0.0684359]
[1766884564858,0.00017083,87831.0,87814.0,0.00017083]
[1766884568867,0.01156423,87831.0,87814.0,0.00017083]
[1766884572662,0.0113938,87829.0,87814.0,0.00017083]
[1766884572864,0.02480818,87828.0,87814.0,0.00017083]
[1766884573066,0.02480818,87827.0,87814.0,0.00017083]
[1766884573366,0.02480818,87826.0,87814.0,0.00017083]
[1766884573567,0.02480818,87825.0,87814.0,0.00017083]
[1766884573866,0.02480818,87824.0,87814.0,0.00017083]
[1766884574167,0.02480818,87823.0,87814.0,0.00017083]
[1766884574362,0.02480818,87822.0,87814.0,0.00017083]
[1766884574563,0.02480818,87821.0,87814.0,0.00017083]
[1766884574762,0.02480818,87820.0,87814.0,0.00017083]
[1766884574969,0.02480818,87819.0,87814.0,0.00017083]
[1766884575268,0.02480818,87818.0,87814.0,0.00017083]
[1766884575468,0.02480818,87817.0,87814.0,0.00017083]
[1766884575668,0.0113936,87830.0,87814.0,0.00017083]
[1766884575870,0.0113942,87826.0,87814.0,0.00017083]
[1766884576068,0.02483772,87825.0,87814.0,0.00017083]
[1766884578766,0.09771694,87826.0,87814.0,0.00017083]
[1766884578968,0.02483772,87825.0,87814.0,0.00017083]
[1766884579268,0.0113943,87824.0,87814.0,0.00017083]
[1766884579463,0.02483772,87823.0,87814.0,0.00017083]
[1766884580066,0.02483772,87822.0,87814.0,0.00017083]
[1766884580265,0.02483772,87821.0,87814.0,0.00017083]
[1766884580465,0.0113936,87830.0,87814.0,0.00017083]
[1766884581174,0.07287862,87830.0,87814.0,0.00017083]
[1766884583265,0.06148502,87830.0,87814.0,0.00017083]
[1766884583470,0.06148502,87839.0,87824.0,0.0113943]
[1766884583672,0.06148502,87840.0,87824.0,0.0113943]
[1766884583873,0.06148502,87840.0,87827.0,0.0113939]
[1766884584075,0.06148502,87841.0,87825.0,0.0113941]
[1766884584471,9.242e-05,87840.0,87825.0,0.0113941]
[1766884585670,9.242e-05,87840.0,87821.0,0.0678]
[1766884585871,4e-08,87847.0,87830.0,0.11419604]
[1766884586065,0.0678,87852.0,87822.0,0.0113945]
[1766884586574,0.0791907,87852.0,87833.0,0.0113931]
[1766884587071,0.0113912,87849.0,87834.0,0.00017083]
[1766884587573,0.0791907,87852.0,87834.0,0.00017083]
[1766884592377,0.02443098,87851.0,87834.0,0.00017083]
[1766884592568,0.0791907,87852.0,87834.0,0.00017083]
[1766884592569,0.02443098,87850.0,87834.0,0.00017083]
[1766884592768,0.02443098,87849.0,87834.0,0.00017083]
[1766884592968,0.02443098,87848.0,87834.0,0.00017083]
[1766884593170,0.02443098,87847.0,87834.0,0.00017083]
[1766884593370,0.02443098,87846.0,87834.0,0.00017083]
[1766884593577,0.02443098,87845.0,87834.0,0.00017083]
[1766884593778,0.02443098,87844.0,87834.0,0.00017083]
[1766884593974,0.02443098,87843.0,87834.0,0.00017083]
[1766884594174,0.02443098,87842.0,87834.0,0.00017083]
[1766884594479,0.0791907,87852.0,87834.0,0.00017083]
[1766884594480,0.02443098,87841.0,87834.0,0.00017083]
[1766884594671,0.02443098,87840.0,87834.0,0.00017083]
[1766884594874,0.02443098,87839.0,87834.0,0.00017083]
[1766884595172,0.00294761,87838.0,87834.0,0.00017083]
[1766884595477,0.0791907,87852.0,87834.0,0.00017083]
[1766884596780,0.0791907,87852.0,87840.0,0.11419634]
[1766884596983,0.0678,87852.0,87840.0,0.11419634]
[1766884600182,0.0678,87852.0,87836.0,0.0113927]
[1766884602389,0.08192949,87849.0,87836.0,0.0113927]
[1766884603291,0.08192949,87849.0,87834.0,0.00017083]
[1766884605593,0.08192949,87849.0,87835.0,0.0113929]
[1766884605988,0.06136393,87842.0,87835.0,0.0113929]
[1766884606189,0.06136393,87841.0,87835.0,0.0113929]
[1766884607096,0.06136393,87841.0,87834.0,0.00017083]
[1766884607293,0.06136393,87841.0,87835.0,0.0113929]
[1766884608891,3e-08,87841.0,87834.0,0.00017083]
[1766884609097,3e-08,87841.0,87837.0,0.0113926]
[1766884610988,3e-08,87841.0,87839.0,0.0113923]
[1766884611194,0.08192949,87849.0,87834.0,0.00017083]
[1766884611597,0.08192949,87849.0,87837.0,0.0113926]
[1766884612297,0.0113905,87854.0,87834.0,0.00017083]
[1766884612298,3e-08,87864.0,87839.0,0.22839268]
[1766884612484,0.0113881,87872.0,87848.0,0.0113912]
[1766884612689,0.0113881,87872.0,87851.0,0.00017072]
[1766884612889,0.0113885,87869.0,87852.0,0.05704]
[1766884613084,0.0113889,87866.0,87852.0,0.05704]
[1766884613286,0.0113884,87870.0,87852.0,0.05704]
[1766884613801,0.12558474,87870.0,87852.0,0.05704]
[1766884619192,0.0113888,87867.0,87852.0,0.05704]
[1766884619393,0.0113888,87867.0,87851.0,0.05721072]
[1766884620599,0.11419634,87861.0,87838.0,0.0113924]
[1766884620794,0.11419634,87861.0,87840.0,0.11419634]
[1766884621102,0.0113894,87863.0,87840.0,0.11419634]
[1766884621698,0.00017036,87860.0,87843.0,0.00017072]
[1766884623494,0.1143667,87860.0,87843.0,0.00017072]
[1766884627004,0.0113898,87859.0,87843.0,0.00017072]
[1766884629200,0.0113898,87859.0,87844.0,0.12476]
[1766884630007,0.1143667,87860.0,87844.0,0.12476]
[1766884631413,0.1143667,87860.0,87845.0,0.0113916]
[1766884635306,0.0113899,87859.0,87843.0,0.00017072]
[1766884635503,0.0113904,87855.0,87844.0,0.057]
[1766884635700,0.0113904,87855.0,87843.0,0.04174072]
[1766884635906,0.0113904,87855.0,87842.0,0.057]
[1766884638913,0.01139,87858.0,87842.0,0.057]
[1766884643116,0.0113901,87857.0,87842.0,0.057]
[1766884644021,0.0113899,87858.0,87840.0,0.01156292]
[1766884644321,0.0113899,87858.0,87841.0,0.057]
[1766884645218,0.0113899,87858.0,87840.0,0.01156292]
[1766884645417,0.0113899,87858.0,87841.0,0.057]
[1766884645618,0.06132218,87856.0,87841.0,0.057]
[1766884645920,0.06132218,87857.0,87841.0,0.057]
[1766884646115,0.06132218,87856.0,87841.0,0.057]
[1766884648217,0.07271208,87858.0,87841.0,0.057]
[1766884648422,0.06132218,87858.0,87842.0,0.0113919]
[1766884648622,0.057,87859.0,87846.0,0.0113914]
[1766884650416,0.0113903,87855.0,87841.0,0.057]
[1766884651422,0.01139,87858.0,87841.0,0.057]
[1766884652518,0.0113902,87856.0,87841.0,0.057]
[1766884653926,0.057,87859.0,87841.0,0.057]
[1766884662642,0.057,87859.0,87840.0,0.00017072]
[1766884662838,0.11832218,87859.0,87841.0,0.057]
[1766884663438,0.0113903,87856.0,87841.0,0.057]
[1766884664040,0.0113905,87854.0,87840.0,0.00017072]
[1766884664337,0.06132218,87857.0,87840.0,0.00017072]
[1766884664935,0.057,87859.0,87840.0,0.00017072]
[1766884664936,0.06132218,87856.0,87840.0,0.00017072]
[1766884665139,0.06132218,87857.0,87840.0,0.00017072]
[1766884665638,0.0113907,87853.0,87840.0,0.00017072]
[1766884672648,0.0113907,87853.0,87840.0,0.05717072]
[1766884676348,0.06132218,87856.0,87840.0,0.00017072]
[1766884676553,0.057,87859.0,87840.0,0.05717072]
[1766884676554,0.06132218,87855.0,87840.0,0.05717072]
[1766884677141,0.0113907,87852.0,87840.0,0.05717072]
[1766884677653,0.07271258,87855.0,87840.0,0.05717072]
[1766884678149,0.06132218,87855.0,87840.0,0.05717072]
[1766884679354,0.06132218,87856.0,87841.0,0.0113921]
[1766884682250,8e-08,87856.0,87852.0,0.0113906]
[1766884682458,3.6e-07,87860.0,87855.0,0.0113902]
[1766884682646,3.6e-07,87860.0,87857.0,0.0113899]
[1766884685347,3.6e-07,87860.0,87858.0,0.057]
[1766884685546,3.6e-07,87860.0,87859.0,0.0113898]
[1766884691860,0.06776,87879.0,87861.0,0.0113894]
[1766884692257,0.06776,87879.0,87864.0,0.0113891]
[1766884692457,0.06776,87879.0,87865.0,0.057]
[1766884693249,0.06776,87879.0,87867.0,0.0113887]
[1766884695459,0.06776,87879.0,87865.0,0.057]
[1766884696565,0.06776,87892.0,87865.0,0.057]
[1766884696765,0.01308551,87887.0,87865.0,0.057]
[1766884696952,0.11419869,87890.0,87863.0,0.00017072]
[1766884697262,0.0113879,87874.0,87863.0,0.00909072]
[1766884705072,0.0113882,87872.0,87863.0,0.00017072]
[1766884710577,0.0113878,87875.0,87863.0,0.00017072]
[1766884711377,0.07274563,87875.0,87863.0,0.00017072]
[1766884712274,0.06135783,87873.0,87863.0,0.00017072]
[1766884712874,0.01135783,87873.0,87863.0,0.00017072]
[1766884714279,0.0113878,87875.0,87863.0,0.00017072]
[1766884714577,0.0113874,87878.0,87863.0,0.00017072]
[1766884714779,0.06776,87880.0,87863.0,0.00017072]
[1766884714970,0.06776,87880.0,87864.0,0.0113891]
[1766884715870,0.01308627,87886.0,87864.0,0.06776]
[1766884716182,0.06776,87890.0,87875.0,0.0113876]
[1766884716378,0.0113853,87894.0,87875.0,0.0113876]
[1766884716379,0.057,87892.0,87875.0,0.0113876]
[1766884718570,0.057,87892.0,87872.0,0.0113881]
[1766884720080,0.0113864,87886.0,87870.0,0.17110037]
[1766884720688,0.0113864,87886.0,87870.0,0.057]
[1766884720894,0.0113864,87886.0,87870.0,0.17110037]
[1766884722086,0.0113859,87889.0,87870.0,0.17110037]
[1766884728690,0.0113856,87891.0,87870.0,0.17110037]
[1766884729689,0.057,87892.0,87871.0,0.0113882]
[1766884730192,0.057,87892.0,87873.0,0.0113879]
[1766884731593,0.0683856,87892.0,87873.0,0.0113879]
[1766884731790,0.0113858,87890.0,87873.0,0.0113879]
[1766884731990,0.0113858,87890.0,87870.0,0.18248867]
[1766884732190,0.0113861,87888.0,87870.0,0.18248867]
[1766884732788,0.06141114,87883.0,87870.0,0.18248867]
[1766884733795,0.06141114,87884.0,87870.0,0.18248867]
[1766884734998,0.06141114,87884.0,87870.0,0.17110037]
[1766884736294,0.06141114,87883.0,87870.0,0.17110037]
[1766884738497,0.06141114,87882.0,87870.0,0.17110037]
[1766884738894,0.06141114,87882.0,87870.0,0.11410037]
[1766884739093,0.06141114,87882.0,87871.0,0.057]
[1766884739697,0.06141114,87881.0,87871.0,0.057]
[1766884741292,0.06141114,87881.0,87871.0,0.00386656]
[1766884742496,0.0113866,87884.0,87871.0,0.00386656]
[1766884743198,0.11410037,87881.0,87863.0,0.00017072]
[1766884743399,0.0113874,87878.0,87864.0,0.057]
[1766884743703,0.0113874,87878.0,87863.0,0.00017072]
[1766884744099,0.11410037,87881.0,87863.0,0.00017072]
[1766884744496,0.0113873,87879.0,87863.0,0.00017072]
[1766884747713,0.0113876,87877.0,87863.0,0.00017072]
[1766884752225,0.11410037,87881.0,87863.0,0.00017072]
[1766884753324,0.0113877,87876.0,87863.0,0.00017072]
[1766884754424,0.11410037,87873.0,87863.0,0.00017072]
[1766884766131,0.11410037,87873.0,87863.0,7.2e-07]
[1766884766335,0.11410037,87873.0,87859.0,0.057]
[1766884766531,0.11410037,87870.0,87859.0,0.057]
[1766884781949,0.00017072,87873.0,87859.0,0.057]
[1766884786653,0.00017072,87873.0,87859.0,0.0683897]
[1766884787045,0.00017072,87873.0,87861.0,0.0113895]
[1766884792946,0.057,87876.0,87859.0,0.057]
[1766884793147,0.06776,87879.0,87865.0,0.0113889]
[1766884793458,0.06776,87879.0,87865.0,0.0683889]
[1766884793649,0.06141114,87883.0,87865.0,0.0683889]
[1766884793650,0.02419407,87878.0,87872.0,0.011388]
[1766884793853,0.057,87883.0,87872.0,0.011388]
[1766884794059,0.057,87883.0,87870.0,0.057]
[1766884796660,0.057,87883.0,87871.0,0.0113882]
[1766884797751,0.057,87883.0,87873.0,0.0113879]
[1766884798360,0.057,87883.0,87870.0,0.057]
[1766884799959,0.057,87883.0,87876.0,0.0113875]
[1766884800165,0.057,87883.0,87870.0,0.057]
[1766884801168,0.06776,87886.0,87870.0,0.057]
[1766884801169,0.06776,87886.0,87877.0,0.0113874]
[1766884803356,0.06776,87886.0,87874.0,0.0113878]
[1766884803553,0.06776,87886.0,87871.0,0.0113882]
[1766884803760,0.057,87897.0,87870.0,0.057]
[1766884804065,0.0113858,87890.0,87875.0,0.00017072]